Cogmind - Beta 9.3 @@@ ROGUE MODE // 2019.12.18 @ 20:58:22 // Winter2019/RPGLIKE Player: Nalzok Result: Destroyed by G-47 Trooper with Particle Gun Performance ------------- Evolutions (3) 1500 Regions Visited (4) 800 Robots Destroyed (30) 150 Value Destroyed (998) 998 Prototype IDs (2) 40 Alien Tech Used (0) 0 Bonus (491) 491 TOTAL SCORE: 3979 Bonus ------- Pacifist 200 Follower Combat Kills 291 Cogmind --------- Core Integrity 0/600 Matter 77/300 Energy 150/150 System Corruption 0% Temperature Cool (18) Movement Treading (160) Location -7/Factory Parts ------- > --- POWER (1) -------- Light Angular Momentum Engine > --- PROPULSION (1) --- Medium Treads > --- UTILITY (3) ------ Advanced Sensor Array Advanced Signal Interpreter Core Analyzer > --- WEAPON (1) ------- Improved Grenade Launcher > --- INVENTORY (4) ---- Carbon-fiber Leg Advanced Targeting Computer Heavy Ion Cannon Gauss Cannon Peak State ------------ > --- POWER ------------ Light Angular Momentum Engine > --- PROPULSION ------- Medium Treads > --- UTILITY ---------- Advanced Sensor Array Advanced Signal Interpreter Core Analyzer > --- WEAPON ----------- Gauss Cannon > --- INVENTORY -------- Carbon-fiber Leg Advanced Targeting Computer Heavy Ion Cannon Improved Grenade Launcher [Rating: 24] Favorites ----------- Power Improved Ion Engine Engine Improved Ion Engine Propulsion Carbon-fiber Leg Treads Medium Treads Leg Carbon-fiber Leg Utility Advanced Signal Interpreter Device Disposable Heat Sink Processor Advanced Signal Interpreter Hackware Hacking Suite Weapon Shotgun Ballistic Gun Shotgun Ballistic Cannon Gauss Cannon Launcher Mini Grenade Launcher Build | -11 -10 -9 -8 -7 ------- Run | Scr Mat Mat Mat Fac Slots Evolved 2 | . . . . 2 Power . | . . . . . Propulsion . | . . . . . Utility 2 | . . . . 2 Weapon . | . . . . . Parts Attached 20 | . . 2 10 8 Power 4 | . . . 3 1 Engine 4 | . . . 3 1 Core . | . . . . . Reactor . | . . . . . Propulsion 3 | . . . 1 2 Treads 1 | . . . . 1 Leg 2 | . . . 1 1 Wheel . | . . . . . Hover . | . . . . . Flight . | . . . . . Utility 6 | . . 1 2 3 Device 2 | . . 1 . 1 Storage . | . . . . . Processor 3 | . . . 2 1 Hackware 1 | . . . . 1 Protection . | . . . . . Artifact . | . . . . . Weapon 7 | . . 1 4 2 Energy Gun . | . . . . . Energy Cannon . | . . . . . Ballistic Gun 3 | . . 1 2 . Ballistic Cannon 1 | . . . . 1 Launcher 3 | . . . 2 1 Special Weapon . | . . . . . Impact Weapon . | . . . . . Slashing Weapon . | . . . . . Piercing Weapon . | . . . . . Special Melee Weapon . | . . . . . Unidentified Prototypes . | . . . . . Parts Lost 1 | . . . . 1 Power . | . . . . . Propulsion . | . . . . . Utility 1 | . . . . 1 Weapon . | . . . . . Highest Loss Streak 1 | . . . . 1 Average Slot Usage (%) 92 | . 75 90 99 90 Engine 21 | . 25 25 25 16 Treads 3 | . . . . 8 Leg 18 | . 25 25 25 7 Device 8 | . . 15 9 7 Processor 18 | . . . 14 31 Ballistic Gun 9 | . 25 25 7 4 Ballistic Cannon 4 | . . . . 11 Launcher 7 | . . . 17 . Naked Turns . | . . . . . Heaviest Build 17 | 7 7 9 13 17 Greatest Support 28 | 10 10 10 15 28 Greatest Overweight (x) 1 | . . . 1 1 Average Overweight (x) . | . . . . . Largest Inventory Capacity 4 | . 2 2 4 4 Average Capacity 3 | . 1 2 3 4 Most Carried 4 | . 1 2 4 4 Average Carried 3 | . . 1 3 3 Final Capacity 4 | . 2 2 4 4 Final Carried 4 | . 1 2 4 4 Class Distribution -------------------- 100% | Mutant Dominant Class ---------------- Mutant | -10/Materials Mutant | -9/Materials Mutant | -8/Materials Mutant | -7/Factory Resources | -11 -10 -9 -8 -7 ----------- Run | Scr Mat Mat Mat Fac Matter Collected 700 | 200 . 55 353 92 Remotely . | . . . . . Salvage Created 524 | . . 64 415 45 Parts 46 | . . 8 35 3 Haulers Intercepted . | . . . . . Recyclers Shooed 1 | . . . . 1 Parts Field Recycled . | . . . . . Retrieved Matter . | . . . . . Parts Self-Destructed . | . . . . . Prevented . | . . . . . Kills | -11 -10 -9 -8 -7 ------- Run | Scr Mat Mat Mat Fac Combat Hostiles Destroyed 22 | . . 2 18 2 Guns 9 | . . 2 7 . Cannons 1 | . . . . 1 AOE 12 | . . . 11 1 Classes Destroyed 8 | . . 2 5 1 Worker 3 | . . . 3 . Builder 2 | . . . 2 . Operator 2 | . . 1 1 . Watcher 1 | . . . . 1 Swarmer 3 | . . . 3 . Grunt 17 | . . 2 13 2 Duelist 1 | . . . 1 . Sentry 1 | . . . 1 . Best Kill Streak 7 | . . 2 7 1 Combat Bots Only 7 | . . 2 7 1 Max Kills in Single Turn 3 | . . 1 3 1 Gunslinging . | . . . . . Exploded 3 | . . . 3 1 Melee . | . . . . . Uniques/NPCs Destroyed . | . . . . . Combat | -11 -10 -9 -8 -7 -------- Run | Scr Mat Mat Mat Fac Damage Taken 1620 | . 29 45 830 716 Core 1368 | . 23 37 710 598 Absorbed by Shields . | . . . . . Redirected to Core 845 | . 23 25 414 383 Core Remaining (%) 88 | 100 96 95 63 . Volleys Fired 81 | . . 13 49 19 Largest 1 | . . 1 1 1 Hottest 48 | . . 23 36 48 Shots Fired 81 | . . 13 49 19 Gun 39 | . . 13 26 . Cannon 18 | . . . . 18 Launcher 24 | . . . 23 1 Special . | . . . . . Kinetic 57 | . . 13 26 18 Thermal . | . . . . . Explosive 24 | . . . 23 1 Electromagnetic . | . . . . . Robot Hit Streak 40 | . . 6 40 19 Robot Miss Streak 4 | . . 4 2 . Penetration Max . | . . . . . Secondary Targets . | . . . . . Shots Hit Robots 75 | . . 10 46 19 Core Hits 62 | . . 7 48 7 Critical Hits 7 | . . . . 7 Critical Kills 1 | . . . . 1 Critical Parts Destroyed 6 | . . . . 6 Melee Attacks . | . . . . . Impact . | . . . . . Slashing . | . . . . . Piercing . | . . . . . Sneak Attacks . | . . . . . Combat Hostiles . | . . . . . Follow-up Attacks . | . . . . . Damage Inflicted 3436 | . . 118 2672 646 Guns 592 | . . 118 474 . Cannons 476 | . . . . 476 Explosions 2362 | . . . 2192 170 Melee . | . . . . . Ramming 6 | . . . 6 . Kinetic 1068 | . . 118 474 476 Thermal . | . . . . . Explosive 2362 | . . . 2192 170 Electromagnetic . | . . . . . Impact . | . . . . . Slashing . | . . . . . Piercing . | . . . . . Highest Corruption . | . . . . . Average Corruption . | . . . . . Corruption Purged . | . . . . . Overload Shots . | . . . . . Overflow Damage 99 | . . . 99 . Projectiles . | . . . . . Explosions 99 | . . . 99 . Melee . | . . . . . Knockbacks 6 | . . . . 6 Impact . | . . . . . Kinetic 4 | . . . . 4 Secondary 2 | . . . . 2 Self-Inflicted Damage 125 | . . . 125 . Shots 4 | . . . 4 . Rammed 1 | . . . 1 . Targets Rammed 1 | . . . 1 . Kicked . | . . . . . Crushed . | . . . . . Highest Temperature 166 | . . . 24 166 Average Temperature 33 | . . . 10 47 Received Heat Transfer 618 | . . 24 351 243 Siege Activations . | . . . . . Robots Corrupted . | . . . . . Combat Hostiles . | . . . . . Parts Fried . | . . . . . Impact Corruptions . | . . . . . Robots Melted . | . . . . . Combat Hostiles . | . . . . . Parts Melted . | . . . . . Heat Transferred . | . . . . . Parts Sabotaged . | . . . . . Parts Stolen . | . . . . . Parts Stripped . | . . . . . Power Chain Reactions . | . . . . . Missiles Intercepted . | . . . . . Alert | -11 -10 -9 -8 -7 ------- Run | Scr Mat Mat Mat Fac Peak Influence 398 | . 45 118 398 311 Average Influence 186 | . 24 75 255 182 Maximum Alert Level 1 | . . . 1 1 Low Security (%) 61 | . 100 100 31 72 Level 1 38 | . . . 68 27 Level 2 . | . . . . . Level 3 . | . . . . . Level 4 . | . . . . . Level 5 . | . . . . . High Security . | . . . . . Max Security . | . . . . . Squads Dispatched 7 | . 1 2 2 2 Investigation 4 | . . . 2 2 Extermination . | . . . . . Reinforcement 3 | . 1 2 . . Assault . | . . . . . Garrison . | . . . . . Intercept . | . . . . . Construction Impeded . | . . . . . Haulers Reinforced . | . . . . . Stealth | -11 -10 -9 -8 -7 --------- Run | Scr Mat Mat Mat Fac Distress Signals 5 | . 2 . 3 . Communications Jammed . | . . . . . Distress Signals . | . . . . . Times Spotted 61 | . 9 8 31 13 Peak Tracking Total 7 | . 6 4 7 5 Tactical Retreats 4 | . 1 . 2 1 Traps | -11 -10 -9 -8 -7 ------- Run | Scr Mat Mat Mat Fac Traps Triggered 4 | . . . 1 3 Indirectly . | . . . . . Trap Hack Attempts . | . . . . . Triggered . | . . . . . Disarmed . | . . . . . Reprogrammed 6 | . . 6 . . Reused 1 | . . 1 . . Traps Extracted . | . . . . . Installed . | . . . . . Triggered 1 | . . 1 . . Machines | -11 -10 -9 -8 -7 ---------- Run | Scr Mat Mat Mat Fac Machines Disabled 3 | . . . 2 1 Max in Single Turn 1 | . . . 1 . Machines Sabotaged . | . . . . . Garrisons Compromised . | . . . . . Overloaded Fab Kills . | . . . . . Fab Network Shutdowns . | . . . . . Hacking | -11 -10 -9 -8 -7 --------- Run | Scr Mat Mat Mat Fac Machines Accessed 12 | . 2 1 5 4 Terminals 10 | . 2 1 5 2 Fabricators 1 | . . . . 1 Repair Stations . | . . . . . Recycling Units . | . . . . . Scanalyzers 1 | . . . . 1 Garrison Access . | . . . . . Total Hacks 24 | . 3 3 9 9 Successful 13 | . 2 1 6 4 Failed 11 | . 1 2 3 5 Catastrophic 2 | . . 1 . 1 Database Lockouts . | . . . . . Manual . | . . . . . Terminals 18 | . 3 3 9 3 Fabricators 3 | . . . . 3 Repair Stations . | . . . . . Recycling Units . | . . . . . Scanalyzers 3 | . . . . 3 Garrison Access . | . . . . . Terminal Hacks 11 | . 2 1 6 2 Part Schematic 1 | . . . . 1 Prototype ID Bank 1 | . . . 1 . Level Access Points 1 | . . . 1 . Emergency Access Points 1 | . . . 1 . Alert Level 1 | . 1 . . . Unreport Threat 2 | . 1 . 1 . Locate Traps 1 | . . . . 1 Reprogram Traps 1 | . . 1 . . Maintenance Status 1 | . . . 1 . Patrol Status 1 | . . . 1 . Fabricator Hacks 1 | . . . . 1 Load Schematic 1 | . . . . 1 Repair Station Hacks . | . . . . . Recycling Unit Hacks . | . . . . . Scanalyzer 1 | . . . . 1 Insert Component 1 | . . . . 1 Garrison Access Hacks . | . . . . . Unauthorized Hacks . | . . . . . Terminals . | . . . . . Fabricators . | . . . . . Repair Stations . | . . . . . Recycling Units . | . . . . . Scanalyzers . | . . . . . Garrison Access . | . . . . . Data Cores Recovered 1 | . . . 1 . Used 1 | . . . 1 . Hacking Detections 9 | . 2 1 3 3 Full Trace Events 4 | . . 1 1 2 Feedback Events 1 | . . . . 1 Hackware Fried 1 | . . . . 1 Feedback Blocked . | . . . . . Robot Schematics Acquired . | . . . . . Robots Built . | . . . . . Matter . | . . . . . Time . | . . . . . Total Robot Build Rating . | . . . . . Part Schematics Acquired 1 | . . . . 1 Parts Built . | . . . . . Matter . | . . . . . Time . | . . . . . Total Part Build Rating . | . . . . . Parts Repaired . | . . . . . Time . | . . . . . Parts Recycled . | . . . . . Recycled Matter . | . . . . . Retrieved Matter . | . . . . . Retrieved Components . | . . . . . Parts Scanalyzed 1 | . . . . 1 Part Schematics Acquired . | . . . . . Parts Damaged . | . . . . . Bothacking | -11 -10 -9 -8 -7 ------------ Run | Scr Mat Mat Mat Fac Used RIF Installer . | . . . . . Robots Hacked . | . . . . . Non-combat . | . . . . . Combat . | . . . . . Robot Hacks Applied . | . . . . . Relay Couplers Released . | . . . . . Robots Rewired . | . . . . . Allies Hacked . | . . . . . Hacks Repelled . | . . . . . Allies | -11 -10 -9 -8 -7 -------- Run | Scr Mat Mat Mat Fac Total Allies 3 | . . . . 3 Largest Group 3 | . . . . 3 Highest-Rated Group 93 | . . . . 93 Highest-Rated Ally 31 | . . . . 31 Total Orders . | . . . . . Ally Attacks 50 | . . . . 50 Total Damage 878 | . . . . 878 Kills 8 | . . . . 8 Allies Corrupted . | . . . . . Allies Melted . | . . . . . Intel | -11 -10 -9 -8 -7 ------- Run | Scr Mat Mat Mat Fac Robot Analysis Total . | . . . . . Derelict Logs Recovered . | . . . . . Drone Launches . | . . . . . Drone Recoveries . | . . . . . Exploration | -11 -10 -9 -8 -7 ------------- Run | Scr Mat Mat Mat Fac Turns Passed 1641 | . 123 206 665 647 Spaces Moved 1084 | 1 102 146 429 406 Core . | . . . . . Treads 182 | . . . . 182 Legs 902 | 1 102 146 429 224 Wheels . | . . . . . Hover . | . . . . . Flight . | . . . . . Fastest Speed 120 | 120 120 120 120 120 Average Speed 128 | 120 120 120 120 143 Slowest Speed 160 | 120 120 120 150 160 Overloaded Moves . | . . . . . Propulsion Burnouts . | . . . . . Robots Hopped . | . . . . . Cave-ins Triggered . | . . . . . Exploration Rate (%) 19 | 2 23 27 35 12 Regions Visited 4 Branch Regions . Pre-discovered Areas . | . . . . . Known Exits Taken 1 | . . . 1 . Unknown Exits Taken 3 | 1 1 1 . . Scrap Searched . | . . . . . Spaces Dug . | . . . . . Terrain Destroyed 118 | . . . 111 7 Melee . | . . . . . Projectile . | . . . . . AOE 118 | . . . 111 7 Actions | -11 -10 -9 -8 -7 --------- Run | Scr Mat Mat Mat Fac Total 1253 | . 102 166 533 452 Wait 2 | . . . 2 . Move 1080 | . 101 145 428 406 Hop . | . . . . . Pick Up 14 | . 1 2 7 4 Fast Attach 8 | . . 1 3 4 Attach 3 | . . . 1 2 Detach 1 | . . . 1 . Swap 9 | . . 1 6 2 Drop 19 | . . 2 11 6 Fire 81 | . . 13 49 19 Melee . | . . . . . Ram . | . . . . . Kick 1 | . . . 1 . Crush . | . . . . . Escape Stasis . | . . . . . Rewire . | . . . . . Trap . | . . . . . Miscellaneous 35 | . . 2 24 9 Route ------- -11/Scrapyard -10/Materials -9/Materials -8/Materials (discovered 3 exits: *Fac x3) -7/Factory History --------- Turn | Location | Event 1 | -11/Scrapyard | Discovered new exit (range 0) 1 | -11/Scrapyard | Entered Materials 109 | -10/Materials | Discovered new exit (range 13) 124 | -10/Materials | Entered another Materials area 126 | -9/Materials | Reached level 2 306 | -9/Materials | Discovered new exit (range 16) 307 | -9/Materials | Build established: Mutant 330 | -9/Materials | Entered another Materials area 332 | -8/Materials | Reached level 3 423 | -8/Materials | Core integrity fell below 50% 451 | -8/Materials | Destroyed 7 combat bots 477 | -8/Materials | Reached level 4 887 | -8/Materials | Discovered new exit (range 19) 894 | -8/Materials | Identified exit to Factory 995 | -8/Materials | Entered Factory 997 | -7/Factory | Reached level 5 997 | -7/Factory | Upgraded with Utility slot (x2) 1019 | -7/Factory | Allied Derelicts emerged from ambush trap array 1189 | -7/Factory | Hacking Suite fried by hacking feedback 1298 | -7/Factory | Reached level 6 1447 | -7/Factory | Core integrity fell below 50% 1629 | -7/Factory | Core integrity fell below 20% 1642 | -7/Factory | Destroyed by G-47 Trooper with Particle Gun Last Messages --------------- 01570_ U-05 Engineer lays Concrete. 01572_ G-47 Trooper destroyed. 01572_ G-47 Trooper suffers critical hit. 01572_ Destroyed Aluminum Leg. 01573_ U-05 Engineer lays Concrete. 01576_ G-47 Trooper suffers critical hit. 01576_ Destroyed Lgt. Nuclear Core. 01578_ G-47 Trooper destroyed. 01579_ U-05 Engineer builds a Wall. 01583_ ON-ZI8(g) destroyed. 01583_ U-05 Engineer lays Concrete. 01586_ U-05 Engineer builds a Wall. 01590_ U-05 Engineer lays Concrete. 01591_ 1J-0FC(g) destroyed. 01592_ U-05 Engineer builds a Wall. 01592_ K-01 Serf collects debris. 01596_ U-05 Engineer lays Concrete. 01603_ U-05 Engineer builds a Wall. 01609_ Connecting with Terminal... 01634_ G-47 Trooper destroyed. Map ----- +----------------------------------------------------+ | ?????????????????????????????????????????????????? | | ?????????????????????????????????????????????????? | | ??????????????????????? ???????????????????????? | | ??????????????????????? ???????????????????????? | | ??????????????????????? #??????????????????????? | | ??????????????????????? #??????????????????????? | | ??????????????????????# #??????????????????????? | | ??????????????????????# #??????????????????????? | | ??????????????????????# #??????????????????????? | | ??????????????????????# #??????????????????????? | | ??????????????????????# #??????????????????????? | | ??????????????????????# #??????????????????????? | | ??????????????????????# #??????????????????????? | | ??????????????????????# #??????????????????????? | | ##############????????+ +??????????????????????? | | # * #????????# #??????????????????????? | | # "" #????????# ##########?????????????? | | # = """ #????????# k# !#?????????????? | | # R" #????????# # #?????????????? | | # ! """ #????????# # #?????????????? | | # # ??????# w# #?????????????? | | # # ????# # #?????????????? | | # # ??# l # #?????????????? | | # """ # # # #?????????????? | | #! ! """"" # #?????????????? | | # """"" # @ #?????????????? | | # ######### g % ##+######?????????????? | | ####+################ g # #??????????????????? | | [%* t "" # #??????????????????? | | =%%% "T #??????????????????? | | !* ## #??????????????????? | | ##+################# ## #??????????????????? | | #?????????????????###+####+#??????????????????? | | #?????????????????????????????????????????????? | | #?????????????????????????????????????????????? | | #?????????????????????????????????????????????? | | #?????????????????????????????????????????????? | | #?????????????????????????????????????????????? | | #?????????????????????????????????????????????? | | #?????????????????????????????????????????????? | | #?????????????????????????????????????????????? | | #?????????????????????????????????????????????? | | ####?????????????????????????????????????????????? | | ?????????????????????????????????????????????????? | | ?????????????????????????????????????????????????? | | ?????????????????????????????????????????????????? | | ?????????????????????????????????????????????????? | | ?????????????????????????????????????????????????? | | ?????????????????????????????????????????????????? | | ?????????????????????????????????????????????????? | +----------------------------------------------------+ Best States ------------- Heat Dissipation 25 Coolant Potential 50 Energy Generation 18 Energy Capacity 265 Matter Stores 300 Matter Capacity 300 Sight Range 20 Robot Scan Range 40 Terrain Scan Density 610 Evasion (%) 40 Targeting Accuracy 8 Core Analysis 6 Recoil Reduction 1 Offensive Hacking 10 Item Schematics ----------------- Lance | -7/Factory | Hacked Robot Schematics ------------------ None Fabricated ------------ Nothing Alien Tech Used ----------------- None Achievements -------------- None Challenges ------------ None RPGLIKE | -11 -10 -9 -8 -7 --------- Run | Scr Mat Mat Mat Fac Levels Raised 5 | . . 1 2 2 XP Earned 11882 | 3000 100 1750 3750 3282 XP Spent 10450 | . 2950 1475 2650 3375 Upgrades 32 | . 6 13 5 8 Utility Slot 2 | . . . . 2 Inventory Capacity 4 | . 2 . 2 . Sight Range 4 | . . . 3 1 Sensor Range 12 | . . 7 . 5 Terrain Scan Density 6 | . . 6 . . Ranged Accuracy 4 | . 4 . . . Protomatter Created 266 | . . 41 179 46 Integrity Restored 766 | . . 31 522 213 Core 766 | . . 31 522 213 Protomatter Decayed 193 | . . 30 . 163 Game ------ Seed BurstMachineSuite Manual? 0 Play Time 00:20:09 Cumulative 202.3 hours Start 2019.12.18 @ 20:43:11 End 2019.12.18 @ 20:58:22 Sessions 1 Manual Loads 0 Difficulty Rogue Special Mode Winter2019/RPGLIKE Game No. 325 Rogue 324 Adventurer 0 Explorer 1 Win Type - Total 1 Types 1/0/0/0/0/0/0 Lore% 59 Gallery% 76 Achievement% 46 Wizard Run 0 Options --------- ASCII 1 Keyboard 1 Movement Vi Keybinds 0 Fullscreen 1 Font 14/Cog Map View 72x52 Tactical HUD 1 Map Filters NONE Filters LOW_CONTRAST(13,24,33) Steam 0 RUN: 6836aba5-3f79-4f98-9d76-700ae2d97c49